[Event "84th ESP-ch 2019"]
[Site "Marbella"]
[Date "2019.11.24"]
[Round "9.20"]
[White "Serarols Mabras, Bernat"]
[Black "Rodriguez Reinoso, Victoriano"]
[Result "1-0"]
[ECO "E01"]
[WhiteElo "2367"]
[BlackElo "2204"]
[Annotator "NA"]
[PlyCount "59"]
[EventDate "2019.11.16"]
[EventType "swiss"]
[EventCountry "ESP"]
[SourceTitle "playchess.com"]
[Source "ChessBase"]
[SourceQuality "1"]
[TimeControl "5400+30"]

1. d4 {[%emt 0:01:14]} Nf6 {[%emt 0:00:00]} 2. c4 {[%emt 0:00:07]} e6 {[%emt 0:00:00]} 3. g3 {[%emt 0:00:09]} d5 {[%emt 0:00:15]} 4. Bg2 {[%emt 0:00:03]} Bb4+ {[%emt 0:00:37]} 5. Bd2 {[%emt 0:00:04]} Be7 {[%emt 0:00:19]} 6. Nf3 {[%emt 0:00:05]} O-O {[%emt 0:00:32]} 7. O-O {[%emt 0:00:05]} Nbd7 {[%emt 0:01:37]} 8. Qc2 {[%emt 0:00:05]} c6 {[%emt 0:00:52]} 9. Bf4 {[%emt 0:00:05]} b6 {[%emt 0:01:32]} 10. Rd1 {[%emt 0:00:06]} Bb7 {[%emt 0:04:32]} 11. Ne5 {[%emt 0:00:16]} Nxe5 {[%emt 0:04:45]} 12. dxe5 {[%emt 0:01:07]} Nd7 {[%emt 0:00:14]} 13. cxd5 {[%emt 0:01:01]} cxd5 {[%emt 0:00:57]} 14. e4 {[%emt 0:01:21]} dxe4 {[%emt 0:07:25]} 15. Bxe4 {[%emt 0:07:01]} Bxe4 {[%emt 0:01:39]} 16. Qxe4 {[%emt 0:00:07]} Nc5 {[%emt 0:00:57]} 17. Qe2 {[%emt 0:04:31]} Qc7 {[%emt 0:00:59]} 18. Nc3 {[%emt 0:03:29]} Rfd8 {[%emt 0:17:47]} 19. b4 {[%emt 0:25:53]} Rxd1+ {[%emt 0:14:15]} 20. Rxd1 {[%emt 0:02:10]} Nd7 {[%emt 0:01:23]} 21. Qe4 {[%emt 0:05:57]} Rd8 {[%emt 0:01:13]} 22. Nb5 {[%emt 0:00:26]} Qb8 {[%emt 0:00:34]} 23. Rc1 {[%emt 0:14:22]} g5 {[%emt 0:10:08]} 24. Nd4 {[%emt 0:02:30]} Qa8 {[%emt 0:05:55]} 25. Nc6 {[%emt 0:00:46]} Kg7 {[%emt 0:04:14]} 26. Qd4 {[%emt 0:05:51]} gxf4 {[%emt 0:04:07]} 27. Nxd8 {[%emt 0:00:37]} Qxd8 {[%emt 0:00:20]} 28. Rd1 {[%emt 0:00:10]} Qa8 {[%emt 0:02:09]} 29. Qxd7 {[%emt 0:00:25]} Bxb4 {[%emt 0:00:17]} 30. Rd4 {[%emt 0:02:21]} 1-0

[Event "84th ESP-ch 2019"]
[Site "Marbella"]
[Date "2019.11.24"]
[Round "9.21"]
[White "Perera Borrego, Maria Adela"]
[Black "Espinosa Aranda, Angel"]
[Result "0-1"]
[ECO "A05"]
[WhiteElo "2201"]
[BlackElo "2511"]
[Annotator "ChessBase"]
[PlyCount "134"]
[EventDate "2019.11.16"]
[EventType "swiss"]
[EventCountry "ESP"]
[SourceTitle "playchess.com"]
[Source "ChessBase"]
[SourceQuality "1"]
[TimeControl "5400+30"]

1. Nf3 {[%emt 0:00:00]} Nf6 {[%emt 0:00:00]} 2. g3 {[%emt 0:00:03]} b5 {[%emt 0:00:03]} 3. Bg2 {[%emt 0:00:27]} Bb7 {[%emt 0:00:05]} 4. b3 {[%emt 0:00:25]} e6 {[%emt 0:00:32]} 5. Bb2 {[%emt 0:01:15]} Be7 {[%emt 0:00:07]} 6. c4 {[%emt 0:01:28]} a6 {[%emt 0:00:05]} 7. O-O {[%emt 0:00:17]} c5 {[%emt 0:00:30]} 8. d3 {[%emt 0:02:35]} O-O {[%emt 0:00:31]} 9. Nbd2 {[%emt 0:00:49]} d6 {[%emt 0:01:50]} 10. e3 {[%emt 0:04:46]} Nc6 {[%emt 0:03:58]} 11. Qe2 {[%emt 0:01:15]} Qb6 {[%emt 0:00:37]} 12. Rac1 {[%emt 0:00:48]} Rfd8 {[%emt 0:04:11]} 13. Rfd1 {[%emt 0:02:23]} Rac8 {[%emt 0:00:51]} 14. h3 {[%emt 0:04:43]} d5 {[%emt 0:01:36]} 15. cxd5 {[%emt 0:06:43]} Nxd5 {[%emt 0:02:35]} 16. Nf1 {[%emt 0:04:46]} Nf6 {[%emt 0:10:48]} 17. g4 {[%emt 0:01:22]} Nb4 {[%emt 0:08:41]} 18. a3 {[%emt 0:05:42]} Nc6 {[%emt 0:00:24]} 19. Ng3 {[%emt 0:02:50]} Na5 {[%emt 0:00:24]} 20. Rb1 {[%emt 0:04:44]} Bd5 {[%emt 0:02:25]} 21. b4 {[%emt 0:06:52]} Nb7 {[%emt 0:00:48]} 22. g5 {[%emt 0:00:55]} Ne8 {[%emt 0:00:07]} 23. bxc5 {[%emt 0:02:45]} Nxc5 {[%emt 0:00:06]} 24. Bd4 {[%emt 0:02:35]} Qb7 {[%emt 0:03:06]} 25. e4 {[%emt 0:04:09]} Bb3 {[%emt 0:02:53]} 26. Rdc1 {[%emt 0:03:07]} Ba4 {[%emt 0:00:12]} 27. Rc3 {[%emt 0:03:57]} Nd7 {[%emt 0:00:44]} 28. Nh5 {[%emt 0:09:04]} g6 {[%emt 0:13:37]} 29. Ng3 {[%emt 0:00:37]} Rxc3 {[%emt 0:04:43]} 30. Bxc3 {[%emt 0:00:02]} Qc7 {[%emt 0:00:12]} 31. Qb2 {[%emt 0:03:22]} Bf8 {[%emt 0:07:16]} 32. d4 {[%emt 0:07:18]} Nd6 {[%emt 0:00:43]} 33. Nd2 {[%emt 0:01:24]} Rc8 {[%emt 0:05:47]} 34. Ne2 {[%emt 0:02:11]} Nb6 {[%emt 0:02:15]} 35. Ba5 {[%emt 0:01:50]} Ndc4 {[%emt 0:00:48]} 36. Bxb6 {[%emt 0:07:25]} Qxb6 {[%emt 0:00:46]} 37. Nxc4 {[%emt 0:00:02]} Rxc4 {[%emt 0:00:06]} 38. Rc1 {[%emt 0:00:30]} Rxc1+ {[%emt 0:00:53]} 39. Qxc1 {[%emt 0:00:30]} Qd6 {[%emt 0:00:06]} 40. Qc8 {[%emt 0:01:15]} Bd1 {[%emt 0:01:19]} 41. e5 {[%emt 0:00:44]} Qxa3 {[%emt 0:00:32]} 42. Ng3 {[%emt 0:01:24]} Bf3 {[%emt 0:01:27]} 43. Bxf3 {[%emt 0:01:33]} Qxf3 {[%emt 0:00:05]} 44. Qxa6 {[%emt 0:00:03]} b4 {[%emt 0:00:05]} 45. Qb6 {[%emt 0:00:32]} b3 {[%emt 0:01:11]} 46. Qb8 {[%emt 0:00:15]} Kg7 {[%emt 0:00:06]} 47. Nf1 {[%emt 0:00:50]} Qc3 {[%emt 0:02:58]} 48. d5 {[%emt 0:00:41]} exd5 {[%emt 0:00:54]} 49. e6 {[%emt 0:00:01]} fxe6 {[%emt 0:01:55]} 50. Qb7+ {[%emt 0:00:42]} Kg8 {[%emt 0:00:27]} 51. Qb6 {[%emt 0:00:25]} Qxh3 {[%emt 0:00:31]} 52. Ng3 {[%emt 0:00:05]} Qg4 {[%emt 0:00:25]} 53. Kg2 {[%emt 0:00:49]} b2 {[%emt 0:00:20]} 54. f3 {[%emt 0:00:47]} b1=Q {[%emt 0:00:21]} 55. Qxb1 {[%emt 0:00:02]} Qxg5 {[%emt 0:00:05]} 56. Qb8 {[%emt 0:00:41]} h5 {[%emt 0:00:31]} 57. Kf2 {[%emt 0:01:12]} Kg7 {[%emt 0:00:21]} 58. Qc7+ {[%emt 0:00:29]} Qe7 {[%emt 0:00:12]} 59. Qe5+ {[%emt 0:00:15]} Qf6 {[%emt 0:00:09]} 60. Qc7+ {[%emt 0:00:04]} Qf7 {[%emt 0:00:07]} 61. Qe5+ {[%emt 0:00:10]} Kh7 {[%emt 0:00:45]} 62. Ne2 {[%emt 0:00:26]} Bg7 {[%emt 0:00:29]} 63. Qd6 {[%emt 0:00:17]} e5 {[%emt 0:00:06]} 64. Kg2 {[%emt 0:00:21]} h4 {[%emt 0:01:18]} 65. Ng1 {[%emt 0:00:27]} e4 {[%emt 0:01:24]} 66. f4 {[%emt 0:00:27]} Qf5 {[%emt 0:00:15]} 67. Kh2 {[%emt 0:01:48]} Qg4 {[%emt 0:00:26]} 0-1

[Event "84th ESP-ch 2019"]
[Site "Marbella"]
[Date "2019.11.24"]
[Round "9.22"]
[White "Guadamuro Torrente, Anabel"]
[Black "Alsina Leal, Daniel"]
[Result "0-1"]
[ECO "B20"]
[WhiteElo "2145"]
[BlackElo "2467"]
[Annotator "ChessBase"]
[PlyCount "110"]
[EventDate "2019.11.16"]
[EventType "swiss"]
[EventCountry "ESP"]
[SourceTitle "playchess.com"]
[Source "ChessBase"]
[SourceQuality "1"]
[TimeControl "5400+30"]

1. e4 {[%emt 0:02:19]} c5 {[%emt 0:00:00]} 2. d3 {[%emt 0:00:36]} Nc6 {[%emt 0:00:00]} 3. g3 {[%emt 0:00:47]} Nf6 {[%emt 0:00:01]} 4. Bg2 {[%emt 0:00:06]} d5 {[%emt 0:00:13]} 5. exd5 {[%emt 0:04:55]} Nxd5 {[%emt 0:00:06]} 6. Nc3 {[%emt 0:00:37]} Nxc3 {[%emt 0:01:17]} 7. bxc3 {[%emt 0:00:09]} g6 {[%emt 0:06:55]} 8. Ne2 {[%emt 0:07:15]} Bg7 {[%emt 0:00:15]} 9. O-O {[%emt 0:01:12]} Bd7 {[%emt 0:04:17]} 10. Rb1 {[%emt 0:11:16]} b6 {[%emt 0:02:01]} 11. c4 {[%emt 0:15:19]} Rc8 {[%emt 0:04:26]} 12. Bb2 {[%emt 0:06:29]} Nd4 {[%emt 0:03:17]} 13. Nxd4 {[%emt 0:02:40]} cxd4 {[%emt 0:00:07]} 14. Re1 {[%emt 0:00:41]} O-O {[%emt 0:00:16]} 15. Qd2 {[%emt 0:04:24]} Bc6 {[%emt 0:17:58]} 16. Bxc6 {[%emt 0:04:33]} Rxc6 {[%emt 0:00:07]} 17. Ba3 {[%emt 0:11:05]} Re8 {[%emt 0:00:49]} 18. Qg5 {[%emt 0:00:55]} Bf6 {[%emt 0:07:37]} 19. Qg4 {[%emt 0:02:56]} Qc7 {[%emt 0:03:24]} 20. Bb2 {[%emt 0:00:57]} h5 {[%emt 0:03:24]} 21. Qe4 {[%emt 0:00:37]} Qd7 {[%emt 0:02:43]} 22. h4 {[%emt 0:01:17]} Rc5 {[%emt 0:07:06]} 23. Rbd1 {[%emt 0:05:25]} Ra5 {[%emt 0:03:53]} 24. a3 {[%emt 0:00:52]} Rc8 {[%emt 0:02:06]} 25. Bc1 {[%emt 0:05:49]} e6 {[%emt 0:10:11]} 26. Qf4 {[%emt 0:02:35]} Rf5 {[%emt 0:00:17]} 27. Qe4 {[%emt 0:00:38]} b5 {[%emt 0:00:49]} 28. Bh6 {[%emt 0:02:28]} bxc4 {[%emt 0:01:04]} 29. dxc4 {[%emt 0:01:32]} Rxc4 {[%emt 0:00:53]} 30. Rb1 {[%emt 0:00:27]} Qd5 {[%emt 0:02:06]} 31. Qe2 {[%emt 0:03:27]} Re5 {[%emt 0:01:42]} 32. Qd2 {[%emt 0:00:32]} Rxe1+ {[%emt 0:01:25]} 33. Rxe1 {[%emt 0:00:07]} Qf5 {[%emt 0:02:46]} 34. Re2 {[%emt 0:01:11]} Rc3 {[%emt 0:04:42]} 35. Bg5 {[%emt 0:00:25]} Rxa3 {[%emt 0:03:08]} 36. Bxf6 {[%emt 0:00:22]} Qxf6 {[%emt 0:00:42]} 37. Re1 {[%emt 0:00:30]} Kg7 {[%emt 0:02:20]} 38. Qb4 {[%emt 0:00:28]} Rc3 {[%emt 0:00:41]} 39. Re2 {[%emt 0:00:34]} d3 {[%emt 0:01:53]} 40. cxd3 {[%emt 0:00:30]} Rxd3 {[%emt 0:00:07]} 41. Qb7 {[%emt 0:00:33]} a5 {[%emt 0:01:29]} 42. Ra2 Qe5 {[%emt 0:00:43]} 43. Rc2 {[%emt 0:00:52]} Rd1+ {[%emt 0:00:32]} 44. Kh2 {[%emt 0:00:28]} Qd5 {[%emt 0:00:48]} 45. Qxd5 {[%emt 0:00:31]} Rxd5 {[%emt 0:00:46]} 46. Ra2 {[%emt 0:00:05]} Kf6 {[%emt 0:00:13]} 47. Kg2 {[%emt 0:00:03]} Ke5 {[%emt 0:00:11]} 48. Kf3 {[%emt 0:00:15]} Kd4 {[%emt 0:00:15]} 49. Ke2 {[%emt 0:00:48]} Kc3 {[%emt 0:00:17]} 50. Ra3+ {[%emt 0:00:26]} Kb2 {[%emt 0:00:45]} 51. Ra4 {[%emt 0:00:09]} Kb3 {[%emt 0:00:17]} 52. Ra1 {[%emt 0:00:05]} a4 {[%emt 0:00:39]} 53. Rb1+ {[%emt 0:00:12]} Kc2 {[%emt 0:00:07]} 54. Ra1 {[%emt 0:00:33]} Re5+ {[%emt 0:00:26]} 55. Kf3 {[%emt 0:00:08]} Ra5 {[%emt 0:00:06]} 0-1

[Event "84th ESP-ch 2019"]
[Site "Marbella"]
[Date "2019.11.24"]
[Round "9.24"]
[White "Gomez Dieguez, David"]
[Black "Rey Malde, Henrique"]
[Result "1/2-1/2"]
[ECO "B12"]
[WhiteElo "2336"]
[BlackElo "2209"]
[Annotator "NA"]
[PlyCount "90"]
[EventDate "2019.11.16"]
[EventType "swiss"]
[EventCountry "ESP"]
[SourceTitle "playchess.com"]
[Source "ChessBase"]
[SourceQuality "1"]
[TimeControl "5400+30"]

1. e4 {[%emt 0:08:30]} c6 {[%emt 0:00:00]} 2. d4 {[%emt 0:00:35]} d5 {[%emt 0:00:00]} 3. e5 {[%emt 0:03:01]} c5 {[%emt 0:00:00]} 4. dxc5 {[%emt 0:00:11]} e6 {[%emt 0:00:00]} 5. a3 {[%emt 0:00:19]} Nc6 {[%emt 0:00:05]} 6. Nf3 {[%emt 0:01:25]} Bxc5 {[%emt 0:00:07]} 7. b4 {[%emt 0:00:04]} Bb6 {[%emt 0:00:05]} 8. Bd3 {[%emt 0:00:39]} Nge7 {[%emt 0:00:06]} 9. O-O {[%emt 0:02:59]} Ng6 {[%emt 0:00:08]} 10. Re1 {[%emt 0:00:40]} O-O {[%emt 0:01:03]} 11. Bb2 {[%emt 0:01:26]} f6 {[%emt 0:00:14]} 12. exf6 {[%emt 0:17:04]} gxf6 {[%emt 0:00:23]} 13. c4 {[%emt 0:02:43]} Nf4 {[%emt 0:00:05]} 14. Bf1 {[%emt 0:06:44]} dxc4 {[%emt 0:01:23]} 15. Qxd8 {[%emt 0:07:49]} Nxd8 {[%emt 0:03:45]} 16. Bxc4 {[%emt 0:00:39]} Kg7 {[%emt 0:04:20]} 17. Nc3 {[%emt 0:02:20]} e5 {[%emt 0:02:36]} 18. Nd5 {[%emt 0:07:06]} Nxd5 {[%emt 0:02:42]} 19. Bxd5 {[%emt 0:00:04]} Be6 {[%emt 0:04:02]} 20. Be4 {[%emt 0:04:18]} Nc6 {[%emt 0:04:12]} 21. Rac1 {[%emt 0:03:01]} Rfd8 {[%emt 0:21:00]} 22. Bxc6 {[%emt 0:02:22]} bxc6 {[%emt 0:01:03]} 23. Rxc6 {[%emt 0:00:05]} Bg4 {[%emt 0:00:26]} 24. Bc1 {[%emt 0:08:47]} Rd3 {[%emt 0:04:35]} 25. a4 {[%emt 0:00:14]} Bd7 {[%emt 0:07:54]} 26. Rc4 {[%emt 0:01:30]} Bxa4 {[%emt 0:01:03]} 27. Be3 {[%emt 0:00:32]} Rad8 {[%emt 0:05:59]} 28. h3 {[%emt 0:02:52]} Bxe3 {[%emt 0:02:50]} 29. Rxe3 {[%emt 0:00:55]} Rxe3 {[%emt 0:02:13]} 30. Rc7+ {[%emt 0:00:57]} Rd7 {[%emt 0:02:45]} 31. Rxd7+ {[%emt 0:00:37]} Bxd7 {[%emt 0:00:04]} 32. fxe3 {[%emt 0:00:04]} Kf7 {[%emt 0:05:19]} 33. Kf2 {[%emt 0:00:06]} Ke6 {[%emt 0:03:37]} 34. e4 {[%emt 0:03:22]} Kd6 {[%emt 0:01:58]} 35. Ke3 {[%emt 0:00:47]} Kc6 {[%emt 0:00:30]} 36. g4 {[%emt 0:01:07]} Kb5 {[%emt 0:02:47]} 37. g5 {[%emt 0:00:07]} fxg5 {[%emt 0:00:06]} 38. Nxg5 {[%emt 0:00:05]} Kxb4 {[%emt 0:04:26]} 39. Nxh7 {[%emt 0:05:42]} Bxh3 {[%emt 0:03:47]} 40. Kd2 {[%emt 0:01:15]} Bg2 {[%emt 0:05:02]} 41. Ng5 {[%emt 0:00:24]} a5 {[%emt 0:00:23]} 42. Kc1 {[%emt 0:01:13]} a4 {[%emt 0:03:10]} 43. Kb2 {[%emt 0:00:11]} Bxe4 {[%emt 0:01:22]} 44. Nf7 {[%emt 0:00:05]} a3+ {[%emt 0:00:30]} 45. Ka1 {[%emt 0:00:04]} Bd5 {[%emt 0:00:29]} 1/2-1/2

[Event "84th ESP-ch 2019"]
[Site "Marbella"]
[Date "2019.11.24"]
[Round "9.25"]
[White "Jimenez Ruano, Adrian"]
[Black "Luque Saiz, Andres"]
[Result "1-0"]
[ECO "D17"]
[WhiteElo "2269"]
[BlackElo "2140"]
[Annotator "NA"]
[PlyCount "75"]
[EventDate "2019.11.16"]
[EventType "swiss"]
[EventCountry "ESP"]
[SourceTitle "playchess.com"]
[Source "ChessBase"]
[SourceQuality "1"]
[TimeControl "5400+30"]

1. d4 {[%emt 0:00:00]} d5 {[%emt 0:00:00]} 2. c4 {[%emt 0:00:00]} c6 {[%emt 0:00:00]} 3. Nf3 {[%emt 0:00:00]} Nf6 {[%emt 0:00:04]} 4. Nc3 {[%emt 0:00:00]} dxc4 5. a4 {[%emt 0:00:00]} Bf5 {[%emt 0:00:40]} 6. Ne5 {[%emt 0:00:00]} Nbd7 {[%emt 0:00:09]} 7. Nxc4 {[%emt 0:00:00]} Nb6 {[%emt 0:00:46]} 8. Ne5 a5 {[%emt 0:00:33]} 9. h4 {[%emt 0:00:26]} h6 {[%emt 0:02:12]} 10. f3 {[%emt 0:01:00]} Bh7 11. e4 e6 {[%emt 0:02:33]} 12. Be3 {[%emt 0:01:19]} Nfd7 {[%emt 0:03:46]} 13. Nd3 {[%emt 0:10:36]} Bd6 14. Rh3 {[%emt 0:01:40]} Qc7 {[%emt 0:07:18]} 15. Qb3 {[%emt 0:04:37]} Bg3+ {[%emt 0:06:19]} 16. Ke2 {[%emt 0:02:27]} Bd6 {[%emt 0:02:10]} 17. Rc1 {[%emt 0:02:59]} Qd8 {[%emt 0:11:41]} 18. g4 {[%emt 0:18:22]} Be7 {[%emt 0:09:03]} 19. Bg2 {[%emt 0:00:04]} Bxh4 {[%emt 0:00:39]} 20. Rch1 Be7 21. f4 {[%emt 0:00:32]} Nf8 {[%emt 0:07:56]} 22. Bf3 {[%emt 0:07:45]} Bf6 {[%emt 0:12:39]} 23. Nc5 {[%emt 0:00:01]} Nbd7 {[%emt 0:01:06]} 24. Nxb7 {[%emt 0:09:02]} Qc7 {[%emt 0:01:41]} 25. Rc1 {[%emt 0:00:01]} Be7 {[%emt 0:13:02]} 26. Nb5 {[%emt 0:03:41]} Qb6 {[%emt 0:01:43]} 27. d5 {[%emt 0:00:00]} c5 {[%emt 0:05:27]} 28. d6 Bd8 {[%emt 0:06:33]} 29. Nxc5 {[%emt 0:18:37]} Nxc5 {[%emt 0:00:13]} 30. Bxc5 {[%emt 0:01:54]} Qa6 {[%emt 0:00:30]} 31. d7+ {[%emt 0:06:54]} Nxd7 {[%emt 0:00:33]} 32. Ba3 {[%emt 0:00:05]} Be7 {[%emt 0:03:06]} 33. Qd3 {[%emt 0:00:23]} Kd8 {[%emt 0:01:47]} 34. Rc7 {[%emt 0:00:36]} Qc8 {[%emt 0:00:30]} 35. Rxc8+ {[%emt 0:01:42]} Rxc8 {[%emt 0:01:41]} 36. Bxe7+ {[%emt 0:00:18]} Kxe7 {[%emt 0:00:04]} 37. Qd6+ {[%emt 0:00:30]} Ke8 {[%emt 0:00:11]} 38. Na7 {[%emt 0:00:43]} 1-0

[Event "84th ESP-ch 2019"]
[Site "Marbella"]
[Date "2019.11.24"]
[Round "9.26"]
[White "De La Cruz Revilla, Miguel"]
[Black "Silva Lucena, Cristian"]
[Result "1-0"]
[ECO "C45"]
[WhiteElo "2138"]
[BlackElo "2244"]
[Annotator "NA"]
[PlyCount "93"]
[EventDate "2019.11.16"]
[EventType "swiss"]
[EventCountry "ESP"]
[SourceTitle "playchess.com"]
[Source "ChessBase"]
[SourceQuality "1"]
[TimeControl "5400+30"]

1. e4 {[%emt 0:00:00]} e5 {[%emt 0:05:13]} 2. Nf3 {[%emt 0:01:48]} Nc6 {[%emt 0:00:04]} 3. d4 {[%emt 0:00:05]} exd4 {[%emt 0:00:09]} 4. Nxd4 {[%emt 0:00:04]} Nf6 {[%emt 0:00:30]} 5. Nxc6 {[%emt 0:00:09]} bxc6 {[%emt 0:00:10]} 6. e5 {[%emt 0:00:09]} Qe7 {[%emt 0:00:07]} 7. Qe2 {[%emt 0:00:05]} Nd5 {[%emt 0:00:06]} 8. c4 {[%emt 0:00:32]} Nb6 {[%emt 0:00:11]} 9. Nd2 Qe6 {[%emt 0:01:54]} 10. Qe4 {[%emt 0:23:50]} g6 {[%emt 0:03:32]} 11. Bd3 {[%emt 0:01:12]} Bg7 {[%emt 0:00:12]} 12. Nf3 {[%emt 0:02:01]} Ba6 {[%emt 0:04:13]} 13. c5 {[%emt 0:07:56]} Bxd3 {[%emt 0:02:52]} 14. Qxd3 {[%emt 0:00:08]} Qc4 {[%emt 0:00:30]} 15. Qxc4 {[%emt 0:13:10]} Nxc4 {[%emt 0:00:39]} 16. O-O {[%emt 0:00:02]} O-O {[%emt 0:04:43]} 17. Rd1 {[%emt 0:01:04]} Nxe5 {[%emt 0:00:45]} 18. Nxe5 {[%emt 0:02:20]} Bxe5 {[%emt 0:00:07]} 19. Rxd7 {[%emt 0:00:09]} Rfd8 {[%emt 0:00:19]} 20. Rxd8+ {[%emt 0:00:32]} Rxd8 {[%emt 0:00:03]} 21. Be3 {[%emt 0:02:32]} Bxb2 {[%emt 0:01:29]} 22. Rb1 {[%emt 0:00:12]} Rd5 {[%emt 0:00:46]} 23. Kf1 {[%emt 0:01:00]} Bd4 {[%emt 0:01:32]} 24. Bxd4 {[%emt 0:09:48]} Rxd4 {[%emt 0:00:03]} 25. Rb7 {[%emt 0:00:06]} Ra4 {[%emt 0:03:12]} 26. Rxc7 {[%emt 0:00:43]} Ra6 {[%emt 0:00:02]} 27. a4 {[%emt 0:01:00]} Kf8 {[%emt 0:00:28]} 28. Ke2 {[%emt 0:00:09]} Ke8 {[%emt 0:00:11]} 29. Ke3 {[%emt 0:02:07]} h5 {[%emt 0:00:20]} 30. g3 {[%emt 0:08:47]} Kf8 {[%emt 0:04:19]} 31. h4 {[%emt 0:00:07]} Kg7 {[%emt 0:00:22]} 32. a5 {[%emt 0:02:45]} Kf6 {[%emt 0:00:23]} 33. Kd4 {[%emt 0:00:27]} Ke6 {[%emt 0:02:22]} 34. Kc4 {[%emt 0:00:37]} Rxa5 {[%emt 0:00:05]} 35. Rxc6+ {[%emt 0:00:06]} Ke5 {[%emt 0:00:03]} 36. Rc7 {[%emt 0:04:43]} f6 {[%emt 0:02:05]} 37. Re7+ {[%emt 0:00:15]} Kf5 {[%emt 0:00:15]} 38. Re2 {[%emt 0:00:35]} Ra1 {[%emt 0:03:12]} 39. c6 {[%emt 0:01:22]} Rc1+ {[%emt 0:00:05]} 40. Kd5 {[%emt 0:00:13]} g5 {[%emt 0:00:43]} 41. Kd6 {[%emt 0:00:22]} Kg4 {[%emt 0:03:48]} 42. Rd2 {[%emt 0:01:59]} gxh4 {[%emt 0:01:04]} 43. Rd4+ {[%emt 0:00:08]} Kg5 {[%emt 0:01:01]} 44. gxh4+ {[%emt 0:00:10]} Kf5 {[%emt 0:00:03]} 45. c7 {[%emt 0:00:35]} a5 {[%emt 0:00:16]} 46. Rd5+ {[%emt 0:00:22]} Kg4 {[%emt 0:00:05]} 47. Rc5 {[%emt 0:00:19]} 1-0

[Event "84th ESP-ch 2019"]
[Site "Marbella"]
[Date "2019.11.24"]
[Round "9.27"]
[White "Kolotilina, Liudmila"]
[Black "Pindado Campos, Raul"]
[Result "1-0"]
[ECO "B54"]
[WhiteElo "2242"]
[BlackElo "2100"]
[Annotator "NA"]
[PlyCount "153"]
[EventDate "2019.11.16"]
[EventType "swiss"]
[EventCountry "ESP"]
[SourceTitle "playchess.com"]
[Source "ChessBase"]
[SourceQuality "1"]
[TimeControl "5400+30"]

1. e4 {[%emt 0:00:00]} c5 {[%emt 0:00:00]} 2. Nf3 {[%emt 0:00:00]} d6 {[%emt 0:00:00]} 3. d4 {[%emt 0:00:00]} cxd4 {[%emt 0:00:00]} 4. Nxd4 {[%emt 0:00:00]} Nf6 {[%emt 0:00:00]} 5. f3 {[%emt 0:00:00]} a6 {[%emt 0:00:39]} 6. c4 {[%emt 0:00:00]} e5 {[%emt 0:01:38]} 7. Nb3 {[%emt 0:00:11]} Be6 {[%emt 0:06:03]} 8. Nc3 {[%emt 0:00:18]} Be7 {[%emt 0:01:11]} 9. Be3 {[%emt 0:00:09]} O-O {[%emt 0:04:09]} 10. Nd5 {[%emt 0:02:45]} Nxd5 {[%emt 0:01:15]} 11. cxd5 {[%emt 0:00:37]} Bd7 {[%emt 0:00:12]} 12. Qd2 {[%emt 0:01:19]} f5 {[%emt 0:01:17]} 13. O-O-O {[%emt 0:04:20]} a5 {[%emt 0:00:50]} 14. Kb1 {[%emt 0:00:39]} a4 {[%emt 0:03:21]} 15. Nc1 {[%emt 0:00:02]} Na6 {[%emt 0:01:47]} 16. exf5 {[%emt 0:03:58]} a3 {[%emt 0:02:32]} 17. g4 {[%emt 0:02:20]} axb2 {[%emt 0:03:34]} 18. Nb3 {[%emt 0:02:46]} b6 {[%emt 0:05:30]} 19. Bxa6 {[%emt 0:13:27]} Rxa6 {[%emt 0:00:10]} 20. Qxb2 {[%emt 0:01:13]} Qa8 {[%emt 0:02:31]} 21. Rd2 {[%emt 0:03:36]} Rc8 {[%emt 0:07:14]} 22. Rc1 {[%emt 0:01:02]} Ra4 {[%emt 0:05:31]} 23. Rxc8+ {[%emt 0:03:24]} Qxc8 {[%emt 0:00:23]} 24. Bxb6 {[%emt 0:13:23]} Bg5 {[%emt 0:04:39]} 25. Rd1 {[%emt 0:03:35]} Rb4 {[%emt 0:06:05]} 26. Ba5 {[%emt 0:01:26]} Rb5 {[%emt 0:00:21]} 27. Bd2 {[%emt 0:19:34]} Bf6 {[%emt 0:03:28]} 28. Qc2 {[%emt 0:08:12]} Qb7 {[%emt 0:12:12]} 29. Be3 {[%emt 0:00:22]} h6 {[%emt 0:01:41]} 30. Qc4 {[%emt 0:07:54]} Rb4 {[%emt 0:01:53]} 31. Qc3 {[%emt 0:00:00]} Ba4 {[%emt 0:01:44]} 32. Kb2 {[%emt 0:00:17]} Bxb3 {[%emt 0:04:06]} 33. axb3 {[%emt 0:00:01]} e4 {[%emt 0:00:14]} 34. Rd4 {[%emt 0:03:17]} Bxd4 {[%emt 0:00:54]} 35. Bxd4 {[%emt 0:00:08]} exf3 {[%emt 0:00:51]} 36. Qe3 {[%emt 0:03:01]} Qb5 {[%emt 0:02:29]} 37. Qe6+ {[%emt 0:01:07]} Kf8 {[%emt 0:08:15]} 38. Qxd6+ {[%emt 0:01:25]} Ke8 {[%emt 0:01:57]} 39. Qe6+ {[%emt 0:00:23]} Kd8 {[%emt 0:01:02]} 40. Qd6+ {[%emt 0:00:10]} Ke8 {[%emt 0:01:55]} 41. Qe6+ {[%emt 0:00:41]} Kd8 {[%emt 0:00:06]} 42. Qg8+ {[%emt 0:00:14]} Qe8 {[%emt 0:03:34]} 43. Qxg7 {[%emt 0:00:02]} Qe2+ {[%emt 0:02:29]} 44. Ka3 {[%emt 0:00:08]} Rxd4 {[%emt 0:00:44]} 45. Qxd4 {[%emt 0:00:03]} f2 {[%emt 0:00:33]} 46. Qb6+ {[%emt 0:01:34]} Ke8 {[%emt 0:00:46]} 47. Qc6+ {[%emt 0:00:55]} Kf8 {[%emt 0:00:50]} 48. Qxh6+ {[%emt 0:00:28]} Ke8 {[%emt 0:00:01]} 49. Qc6+ {[%emt 0:01:39]} Kf8 {[%emt 0:00:07]} 50. Qc8+ {[%emt 0:01:41]} Kf7 {[%emt 0:01:22]} 51. Qc7+ {[%emt 0:00:16]} Qe7+ {[%emt 0:00:13]} 52. d6 {[%emt 0:00:01]} Qxc7 {[%emt 0:00:43]} 53. dxc7 {[%emt 0:00:01]} f1=Q {[%emt 0:00:11]} 54. c8=Q {[%emt 0:00:03]} Qa1+ {[%emt 0:00:50]} 55. Kb4 {[%emt 0:00:02]} Qe1+ {[%emt 0:00:22]} 56. Qc3 {[%emt 0:00:44]} Qe7+ {[%emt 0:00:17]} 57. Qc5 {[%emt 0:00:18]} Qb7+ {[%emt 0:00:36]} 58. Kc4 {[%emt 0:01:02]} Qe4+ {[%emt 0:00:16]} 59. Qd4 {[%emt 0:00:12]} Qc6+ {[%emt 0:00:07]} 60. Kd3 {[%emt 0:01:06]} Qf3+ {[%emt 0:00:01]} 61. Qe3 {[%emt 0:01:01]} Qd5+ {[%emt 0:00:01]} 62. Kc3 {[%emt 0:00:49]} Qc6+ {[%emt 0:00:11]} 63. Kb2 {[%emt 0:00:59]} Qg2+ {[%emt 0:00:08]} 64. Kb1 {[%emt 0:00:19]} Qh1+ {[%emt 0:00:12]} 65. Qc1 {[%emt 0:00:15]} Qe4+ {[%emt 0:00:20]} 66. Qc2 {[%emt 0:00:25]} Qe1+ {[%emt 0:00:07]} 67. Kb2 {[%emt 0:00:48]} Qe5+ {[%emt 0:00:11]} 68. Qc3 {[%emt 0:00:18]} Qe2+ {[%emt 0:00:06]} 69. Ka3 {[%emt 0:00:41]} Qa6+ {[%emt 0:00:19]} 70. Kb4 {[%emt 0:00:02]} Qb7+ {[%emt 0:00:25]} 71. Kc4 {[%emt 0:00:35]} Qe4+ {[%emt 0:00:13]} 72. Qd4 {[%emt 0:00:33]} Qc6+ {[%emt 0:00:04]} 73. Qc5 {[%emt 0:00:18]} Qe4+ {[%emt 0:00:07]} 74. Kb5 {[%emt 0:00:16]} Qb7+ {[%emt 0:00:08]} 75. Qb6 {[%emt 0:00:26]} Qd5+ {[%emt 0:00:02]} 76. Ka6 {[%emt 0:00:40]} Qd3+ {[%emt 0:00:24]} 77. Ka7 {[%emt 0:00:22]} 1-0